[Event "Live Chess"]
[Site "Chess.com"]
[Date "2020.05.16"]
[Round "1.52"]
[White "Oh, Julie"]
[Black "Sucikova, Svetlana"]
[Result "0-1"]
[ECO "B12"]
[WhiteElo "1211"]
[BlackElo "2112"]
[PlyCount "120"]
[EventDate "2020.??.??"]
[TimeControl "180+2"]
[WhiteClock "0:00:50"]
[BlackClock "0:00:18"]

1. e4 {[%emt 0:00:00]} c6 {[%emt 0:00:04]} 2. d4 {[%emt 0:00:13]} d5 {[%emt 0:
00:00]} 3. e5 {[%emt 0:00:03]} Bf5 {[%emt 0:00:03]} 4. Nf3 {[%emt 0:00:07]} e6
{[%emt 0:00:02]} 5. Be3 {[%emt 0:00:07]} Nd7 {[%emt 0:00:02]} 6. c4 {[%emt 0:
00:04]} dxc4 {[%emt 0:00:05]} 7. Bxc4 {[%emt 0:00:04]} Ne7 {[%emt 0:00:03]} 8.
Nc3 {[%emt 0:00:03]} Nb6 {[%emt 0:00:01]} 9. Bb3 {[%emt 0:00:10]} Ned5 {
[%emt 0:00:04]} 10. Nxd5 {[%emt 0:00:04]} Nxd5 {[%emt 0:00:00]} 11. Bxd5 {
[%emt 0:00:10]} Qxd5 {[%emt 0:00:03]} 12. O-O {[%emt 0:00:06]} Be7 {[%emt 0:00:
02]} 13. b3 {[%emt 0:00:09]} O-O {[%emt 0:00:04]} 14. Rc1 {[%emt 0:00:02]} Ba3
{[%emt 0:00:29]} 15. Rc3 {[%emt 0:00:14]} Rfd8 {[%emt 0:00:02]} 16. Qe2 {
[%emt 0:00:13]} Be4 {[%emt 0:00:12]} 17. Rd1 {[%emt 0:00:10]} Rd7 {[%emt 0:00:
16]} 18. h3 {[%emt 0:00:26]} Rad8 {[%emt 0:00:10]} 19. Bc1 {[%emt 0:00:06]}
Bxf3 {[%emt 0:00:21]} 20. gxf3 {[%emt 0:00:10]} Bxc1 {[%emt 0:00:10]} 21. Rcxc1
{[%emt 0:00:02]} c5 {[%emt 0:00:43]} 22. Rxc5 {[%emt 0:00:18]} Qxc5 {[%emt 0:
00:02]} 23. dxc5 {[%emt 0:00:02]} Rxd1+ {[%emt 0:00:00]} 24. Kg2 {[%emt 0:00:
04]} R1d7 {[%emt 0:00:05]} 25. Qe3 {[%emt 0:00:09]} Rc7 {[%emt 0:00:02]} 26. b4
{[%emt 0:00:05]} h6 {[%emt 0:00:04]} 27. a3 {[%emt 0:00:06]} Rdc8 {[%emt 0:00:
02]} 28. Qd4 {[%emt 0:00:05]} a5 {[%emt 0:00:04]} 29. Qd6 {[%emt 0:00:05]} axb4
{[%emt 0:00:02]} 30. axb4 {[%emt 0:00:02]} Rc6 {[%emt 0:00:01]} 31. Qd7 {
[%emt 0:00:04]} R8c7 {[%emt 0:00:02]} 32. Qd8+ {[%emt 0:00:02]} Kh7 {[%emt 0:
00:01]} 33. Qd3+ {[%emt 0:00:01]} g6 {[%emt 0:00:05]} 34. f4 {[%emt 0:00:02]}
b6 {[%emt 0:00:13]} 35. cxb6 {[%emt 0:00:04]} Rxb6 {[%emt 0:00:00]} 36. Qb3 {
[%emt 0:00:05]} Rcb7 {[%emt 0:00:02]} 37. h4 {[%emt 0:00:03]} Rxb4 {[%emt 0:00:
01]} 38. Qd3 {[%emt 0:00:02]} Rxf4 {[%emt 0:00:06]} 39. Qg3 {[%emt 0:00:04]}
Rf5 {[%emt 0:00:04]} 40. f4 {[%emt 0:00:03]} Rb2+ {[%emt 0:00:03]} 41. Kf3 {
[%emt 0:00:02]} Rb3+ {[%emt 0:00:01]} 42. Kf2 {[%emt 0:00:02]} Rxg3 {[%emt 0:
00:00]} 43. Kxg3 {[%emt 0:00:01]} Kg8 {[%emt 0:00:02]} 44. Kg4 {[%emt 0:00:02]}
Kf8 {[%emt 0:00:02]} 45. Kf3 {[%emt 0:00:03]} Ke7 {[%emt 0:00:01]} 46. Kg4 {
[%emt 0:00:02]} Kd7 {[%emt 0:00:01]} 47. Kf3 {[%emt 0:00:01]} Kc6 {[%emt 0:00:
01]} 48. Kg4 {[%emt 0:00:01]} Kd5 {[%emt 0:00:01]} 49. Kf3 {[%emt 0:00:02]} Kd4
{[%emt 0:00:01]} 50. Kg4 {[%emt 0:00:03]} Ke4 {[%emt 0:00:01]} 51. Kg3 {
[%emt 0:00:02]} Rxf4 {[%emt 0:00:01]} 52. Kh3 {[%emt 0:00:02]} Kxe5 {[%emt 0:
00:01]} 53. Kg3 {[%emt 0:00:01]} Kf5 {[%emt 0:00:00]} 54. Kg2 {[%emt 0:00:02]}
e5 {[%emt 0:00:00]} 55. Kg3 {[%emt 0:00:01]} e4 {[%emt 0:00:00]} 56. Kh3 {
[%emt 0:00:02]} e3 {[%emt 0:00:00]} 57. Kg3 {[%emt 0:00:01]} e2 {[%emt 0:00:00]
} 58. h5 {[%emt 0:00:02]} e1=Q+ {[%emt 0:00:00]} 59. Kh3 {[%emt 0:00:01]} Rg4 {
[%emt 0:00:05]} 60. hxg6 {[%emt 0:00:03]} Qg3# {[%emt 0:00:01] Sucikova, Svetlana won by
checkmate} 0-1

[Event "Live Chess"]
[Site "Chess.com"]
[Date "2020.05.16"]
[Round "1.53"]
[White "Sucikova, Svetlana"]
[Black "Oh, Julie"]
[Result "1-0"]
[ECO "D12"]
[WhiteElo "2112"]
[BlackElo "1211"]
[PlyCount "107"]
[EventDate "2020.??.??"]
[TimeControl "180+2"]
[WhiteClock "0:00:25"]
[BlackClock "0:00:34"]

1. Nf3 {[%emt 0:00:00]} d5 {[%emt 0:00:09]} 2. e3 {[%emt 0:00:06]} c6 {[%emt 0:
00:04]} 3. c4 {[%emt 0:00:01]} Nf6 {[%emt 0:00:07]} 4. Nc3 {[%emt 0:00:01]} Bf5
{[%emt 0:00:08]} 5. b3 {[%emt 0:00:01]} h6 {[%emt 0:00:03]} 6. Bb2 {[%emt 0:00:
06]} e6 {[%emt 0:00:04]} 7. Be2 {[%emt 0:00:01]} Nbd7 {[%emt 0:00:03]} 8. O-O {
[%emt 0:00:01]} Be7 {[%emt 0:00:06]} 9. d4 {[%emt 0:00:02]} O-O {[%emt 0:00:06]
} 10. Ne5 {[%emt 0:00:01]} Nxe5 {[%emt 0:00:04]} 11. dxe5 {[%emt 0:00:00]} Ne4
{[%emt 0:00:07]} 12. Nxe4 {[%emt 0:00:20]} Bxe4 {[%emt 0:00:07]} 13. Qd4 {
[%emt 0:00:13]} Bg5 {[%emt 0:00:18]} 14. Ba3 {[%emt 0:00:10]} Re8 {[%emt 0:00:
08]} 15. Bd6 {[%emt 0:00:32]} Be7 {[%emt 0:00:06]} 16. c5 {[%emt 0:00:02]} b6 {
[%emt 0:00:10]} 17. b4 {[%emt 0:00:06]} f6 {[%emt 0:00:26]} 18. Bh5 {[%emt 0:
00:12]} Rf8 {[%emt 0:00:05]} 19. f3 {[%emt 0:00:06]} Bh7 {[%emt 0:00:13]} 20.
Bg4 {[%emt 0:00:02]} Bf5 {[%emt 0:00:11]} 21. Bxf5 {[%emt 0:00:12]} exf5 {
[%emt 0:00:03]} 22. f4 {[%emt 0:00:18]} fxe5 {[%emt 0:00:19]} 23. fxe5 {
[%emt 0:00:14]} Bxd6 {[%emt 0:00:12]} 24. exd6 {[%emt 0:00:07]} Qf6 {[%emt 0:
00:08]} 25. Rf4 {[%emt 0:00:30]} Qxd4 {[%emt 0:00:02]} 26. exd4 {[%emt 0:00:06]
} Rfe8 {[%emt 0:00:02]} 27. Rxf5 {[%emt 0:00:04]} Re4 {[%emt 0:00:02]} 28. Re5
{[%emt 0:00:02]} Rxd4 {[%emt 0:00:02]} 29. d7 {[%emt 0:00:02]} Rd8 {[%emt 0:00:
02]} 30. Re8+ {[%emt 0:00:01]} Kf7 {[%emt 0:00:03]} 31. Rxd8 {[%emt 0:00:02]}
Ke7 {[%emt 0:00:01]} 32. Ra8 {[%emt 0:00:02]} Kxd7 {[%emt 0:00:02]} 33. Rxa7+ {
[%emt 0:00:01]} Ke6 {[%emt 0:00:02]} 34. cxb6 {[%emt 0:00:01]} Rf4 {[%emt 0:00:
03]} 35. a3 {[%emt 0:00:04]} Rf8 {[%emt 0:00:02]} 36. Rxg7 {[%emt 0:00:02]} Rb8
{[%emt 0:00:02]} 37. b7 {[%emt 0:00:01]} Kd6 {[%emt 0:00:02]} 38. a4 {[%emt 0:
00:02]} c5 {[%emt 0:00:01]} 39. bxc5+ {[%emt 0:00:02]} Kxc5 {[%emt 0:00:01]}
40. a5 {[%emt 0:00:01]} Kc6 {[%emt 0:00:01]} 41. a6 {[%emt 0:00:01]} Kb6 {
[%emt 0:00:01]} 42. a7 {[%emt 0:00:02]} Rxb7 {[%emt 0:00:05]} 43. Rxb7+ {
[%emt 0:00:00]} Kxb7 {[%emt 0:00:01]} 44. a8=Q+ {[%emt 0:00:01]} Kb6 {[%emt 0:
00:02]} 45. Qa6+ {[%emt 0:00:02]} Kc5 {[%emt 0:00:02]} 46. Rc1+ {[%emt 0:00:01]
} Kd4 {[%emt 0:00:01]} 47. Qa4+ {[%emt 0:00:03]} Ke5 {[%emt 0:00:01]} 48. Rd1 {
[%emt 0:00:03]} h5 {[%emt 0:00:03]} 49. Qb5 {[%emt 0:00:01]} Ke6 {[%emt 0:00:
03]} 50. Qxd5+ {[%emt 0:00:02]} Kf6 {[%emt 0:00:01]} 51. Rf1+ {[%emt 0:00:02]}
Kg6 {[%emt 0:00:02]} 52. Qf7+ {[%emt 0:00:02]} Kg5 {[%emt 0:00:02]} 53. Qf6+ {
[%emt 0:00:01]} Kg4 {[%emt 0:00:02]} 54. Rf4# {[%emt 0:00:01] Sucikova, Svetlana won by
checkmate} 1-0

[Event "Live Chess"]
[Site "Chess.com"]
[Date "2020.05.16"]
[Round "1.61"]
[White "Dicen, Elis"]
[Black "Longson, Sarah"]
[Result "1-0"]
[ECO "C55"]
[WhiteElo "1859"]
[BlackElo "2018"]
[PlyCount "111"]
[EventDate "2020.??.??"]
[TimeControl "180+2"]
[WhiteClock "0:00:27"]
[BlackClock "0:00:32"]

1. e4 {[%emt 0:00:00]} e5 {[%emt 0:00:01]} 2. Nf3 {[%emt 0:00:02]} Nc6 {
[%emt 0:00:02]} 3. Bc4 {[%emt 0:00:02]} Nf6 {[%emt 0:00:05]} 4. d3 {[%emt 0:00:
02]} Be7 {[%emt 0:00:04]} 5. c3 {[%emt 0:00:02]} O-O {[%emt 0:00:04]} 6. O-O {
[%emt 0:00:01]} d5 {[%emt 0:00:07]} 7. exd5 {[%emt 0:00:03]} Nxd5 {[%emt 0:00:
01]} 8. Be3 {[%emt 0:00:06]} Nb6 {[%emt 0:00:26]} 9. Bb3 {[%emt 0:00:11]} Bg4 {
[%emt 0:00:07]} 10. Bxb6 {[%emt 0:00:19]} axb6 {[%emt 0:00:03]} 11. h3 {
[%emt 0:00:05]} Bh5 {[%emt 0:00:03]} 12. Qe2 {[%emt 0:00:10]} Kh8 {[%emt 0:00:
12]} 13. Nbd2 {[%emt 0:00:06]} Bg6 {[%emt 0:00:08]} 14. Bc2 {[%emt 0:00:17]}
Bd6 {[%emt 0:00:12]} 15. Nc4 {[%emt 0:00:07]} Qe7 {[%emt 0:00:06]} 16. Rfe1 {
[%emt 0:00:11]} Rae8 {[%emt 0:00:02]} 17. Rad1 {[%emt 0:00:04]} f5 {[%emt 0:00:
04]} 18. a3 {[%emt 0:00:19]} b5 {[%emt 0:00:02]} 19. Ncd2 {[%emt 0:00:15]} Bh5
{[%emt 0:00:01]} 20. Kh1 {[%emt 0:00:14]} Qf6 {[%emt 0:00:08]} 21. Kg1 {
[%emt 0:00:10]} Qh6 {[%emt 0:00:05]} 22. Qe3 {[%emt 0:00:07]} Qxe3 {[%emt 0:00:
15]} 23. Rxe3 {[%emt 0:00:02]} h6 {[%emt 0:00:16]} 24. Rde1 {[%emt 0:00:09]}
Re7 {[%emt 0:00:10]} 25. g3 {[%emt 0:00:03]} f4 {[%emt 0:00:17]} 26. gxf4 {
[%emt 0:00:06]} Rxf4 {[%emt 0:00:10]} 27. Kg2 {[%emt 0:00:02]} Re6 {[%emt 0:00:
11]} 28. Nh2 {[%emt 0:00:11]} Rg6+ {[%emt 0:00:03]} 29. Rg3 {[%emt 0:00:04]}
Rgf6 {[%emt 0:00:04]} 30. Nhf3 {[%emt 0:00:08]} Bxf3+ {[%emt 0:00:05]} 31. Nxf3
{[%emt 0:00:02]} Kg8 {[%emt 0:00:12]} 32. Rf1 {[%emt 0:00:02]} h5 {[%emt 0:00:
02]} 33. Nd2 {[%emt 0:00:02]} Rf8 {[%emt 0:00:02]} 34. Ne4 {[%emt 0:00:02]} Ne7
{[%emt 0:00:02]} 35. Nxd6 {[%emt 0:00:04]} cxd6 {[%emt 0:00:01]} 36. d4 {
[%emt 0:00:04]} Nf5 {[%emt 0:00:01]} 37. Bxf5 {[%emt 0:00:02]} R8xf5 {[%emt 0:
00:01]} 38. dxe5 {[%emt 0:00:01]} Rxe5 {[%emt 0:00:01]} 39. Re3 {[%emt 0:00:01]
} Rg5+ {[%emt 0:00:02]} 40. Rg3 {[%emt 0:00:01]} Kf7 {[%emt 0:00:00]} 41. Rxg5
{[%emt 0:00:01]} Rf6 {[%emt 0:00:04]} 42. Rxb5 {[%emt 0:00:02]} Rg6+ {[%emt 0:
00:01]} 43. Kh2 {[%emt 0:00:01]} Ke6 {[%emt 0:00:01]} 44. Rxb7 {[%emt 0:00:01]}
Kd5 {[%emt 0:00:02]} 45. Rb4 {[%emt 0:00:01]} Kc5 {[%emt 0:00:01]} 46. Re1 {
[%emt 0:00:02]} d5 {[%emt 0:00:02]} 47. Re5 {[%emt 0:00:02]} Rf6 {[%emt 0:00:
02]} 48. Kg2 {[%emt 0:00:02]} Rg6+ {[%emt 0:00:01]} 49. Kf1 {[%emt 0:00:01]}
Rf6 {[%emt 0:00:01]} 50. Rxh5 {[%emt 0:00:01]} Rf3 {[%emt 0:00:02]} 51. Rd4 {
[%emt 0:00:02]} Rf8 {[%emt 0:00:01]} 52. Rhxd5+ {[%emt 0:00:01]} Kc6 {[%emt 0:
00:03]} 53. Rd7 {[%emt 0:00:01]} Rf3 {[%emt 0:00:02]} 54. Rxg7 {[%emt 0:00:02]}
Rf5 {[%emt 0:00:01]} 55. Rg6+ {[%emt 0:00:02]} Kc7 {[%emt 0:00:02]} 56. h4 {
[%emt 0:00:02] Dicen, Elis won by resignation} 1-0

[Event "Live Chess"]
[Site "Chess.com"]
[Date "2020.05.16"]
[Round "1.62"]
[White "Longson, Sarah"]
[Black "Dicen, Elis"]
[Result "0-1"]
[ECO "C10"]
[WhiteElo "1997"]
[BlackElo "1870"]
[PlyCount "56"]
[EventDate "2020.??.??"]
[TimeControl "180+2"]
[WhiteClock "0:01:17"]
[BlackClock "0:01:08"]

1. e4 {[%emt 0:00:00]} e6 {[%emt 0:00:00]} 2. d4 {[%emt 0:00:02]} d5 {[%emt 0:
00:01]} 3. Nc3 {[%emt 0:00:01]} dxe4 {[%emt 0:00:01]} 4. Nxe4 {[%emt 0:00:01]}
Nd7 {[%emt 0:00:01]} 5. Nf3 {[%emt 0:00:05]} Ngf6 {[%emt 0:00:02]} 6. Bg5 {
[%emt 0:00:02]} Be7 {[%emt 0:00:01]} 7. Bxf6 {[%emt 0:00:01]} Nxf6 {[%emt 0:00:
01]} 8. Bd3 {[%emt 0:00:05]} O-O {[%emt 0:00:06]} 9. Qd2 {[%emt 0:00:17]} b6 {
[%emt 0:00:12]} 10. Nxf6+ {[%emt 0:00:24]} Bxf6 {[%emt 0:00:04]} 11. O-O-O {
[%emt 0:00:04]} Bb7 {[%emt 0:00:02]} 12. c3 {[%emt 0:00:06]} a5 {[%emt 0:00:02]
} 13. Kb1 {[%emt 0:00:05]} a4 {[%emt 0:00:09]} 14. h4 {[%emt 0:00:02]} a3 {
[%emt 0:00:02]} 15. b3 {[%emt 0:00:04]} Ra5 {[%emt 0:00:07]} 16. g4 {[%emt 0:
00:02]} Bxf3 {[%emt 0:00:06]} 17. g5 {[%emt 0:00:11]} Bxd1 {[%emt 0:00:12]} 18.
gxf6 {[%emt 0:00:11]} Qxf6 {[%emt 0:00:04]} 19. Rxd1 {[%emt 0:00:05]} Rd8 {
[%emt 0:00:07]} 20. h5 {[%emt 0:00:08]} h6 {[%emt 0:00:03]} 21. Qe3 {[%emt 0:
00:06]} Rg5 {[%emt 0:00:08]} 22. Qe4 {[%emt 0:00:04]} Qf5 {[%emt 0:00:34]} 23.
Qb7 {[%emt 0:00:11]} Qxf2 {[%emt 0:00:06]} 24. Bc2 {[%emt 0:00:06]} Rg1 {
[%emt 0:00:11]} 25. Rc1 {[%emt 0:00:22]} Rxc1+ {[%emt 0:00:06]} 26. Kxc1 {
[%emt 0:00:01]} Qe1+ {[%emt 0:00:04]} 27. Bd1 {[%emt 0:00:03]} Qxc3+ {[%emt 0:
00:03]} 28. Bc2 {[%emt 0:00:01]} Qxd4 {[%emt 0:00:05] Dicen, Elis won by resignation
} 0-1

[Event "Live Chess"]
[Site "Chess.com"]
[Date "2020.05.16"]
[Round "1.63"]
[White "Dicen, Elis"]
[Black "Longson, Sarah"]
[Result "1-0"]
[ECO "C55"]
[WhiteElo "1881"]
[BlackElo "1978"]
[PlyCount "195"]
[EventDate "2020.??.??"]
[TimeControl "180+2"]
[WhiteClock "0:00:21"]
[BlackClock "0:00:25"]

1. e4 {[%emt 0:00:00]} e5 {[%emt 0:00:01]} 2. Nf3 {[%emt 0:00:01]} Nc6 {
[%emt 0:00:01]} 3. Bc4 {[%emt 0:00:01]} Nf6 {[%emt 0:00:02]} 4. d3 {[%emt 0:00:
01]} Be7 {[%emt 0:00:05]} 5. c3 {[%emt 0:00:02]} O-O {[%emt 0:00:04]} 6. O-O {
[%emt 0:00:02]} d5 {[%emt 0:00:09]} 7. exd5 {[%emt 0:00:02]} Nxd5 {[%emt 0:00:
01]} 8. Be3 {[%emt 0:00:04]} Nxe3 {[%emt 0:00:01]} 9. fxe3 {[%emt 0:00:01]} Bd6
{[%emt 0:00:31]} 10. Nbd2 {[%emt 0:00:09]} Na5 {[%emt 0:00:06]} 11. Bb3 {
[%emt 0:00:06]} Nxb3 {[%emt 0:00:02]} 12. Nxb3 {[%emt 0:00:14]} Be6 {[%emt 0:
00:14]} 13. e4 {[%emt 0:00:05]} c5 {[%emt 0:00:10]} 14. c4 {[%emt 0:00:11]} Qc7
{[%emt 0:00:13]} 15. Ng5 {[%emt 0:00:15]} Qe7 {[%emt 0:00:22]} 16. Qh5 {
[%emt 0:00:11]} h6 {[%emt 0:00:10]} 17. Nxe6 {[%emt 0:00:03]} Qxe6 {[%emt 0:00:
06]} 18. Rf3 {[%emt 0:00:13]} Kh7 {[%emt 0:00:18]} 19. Raf1 {[%emt 0:00:08]} g6
{[%emt 0:00:09]} 20. Qh4 {[%emt 0:00:18]} Be7 {[%emt 0:00:05]} 21. Qf2 {
[%emt 0:00:03]} Kg7 {[%emt 0:00:07]} 22. Nc1 {[%emt 0:00:14]} Rad8 {[%emt 0:00:
04]} 23. Ne2 {[%emt 0:00:11]} Rd7 {[%emt 0:00:03]} 24. h3 {[%emt 0:00:08]} Bd8
{[%emt 0:00:06]} 25. b3 {[%emt 0:00:05]} b6 {[%emt 0:00:03]} 26. Rd1 {[%emt 0:
00:15]} Be7 {[%emt 0:00:03]} 27. Rf1 {[%emt 0:00:03]} Bd8 {[%emt 0:00:02]} 28.
Rd1 {[%emt 0:00:02]} a5 {[%emt 0:00:01]} 29. a4 {[%emt 0:00:04]} Ra7 {[%emt 0:
00:02]} 30. Rf1 {[%emt 0:00:05]} Bg5 {[%emt 0:00:02]} 31. Qg3 {[%emt 0:00:10]}
Rd7 {[%emt 0:00:02]} 32. h4 {[%emt 0:00:06]} Be7 {[%emt 0:00:05]} 33. h5 {
[%emt 0:00:02]} g5 {[%emt 0:00:03]} 34. Rf5 {[%emt 0:00:07]} f6 {[%emt 0:00:02]
} 35. Nc1 {[%emt 0:00:02]} Rfd8 {[%emt 0:00:03]} 36. R1f3 {[%emt 0:00:03]} Qd6
{[%emt 0:00:07]} 37. Ne2 {[%emt 0:00:03]} Rf8 {[%emt 0:00:03]} 38. Qf2 {
[%emt 0:00:02]} Kh7 {[%emt 0:00:02]} 39. Qg3 {[%emt 0:00:02]} Qe6 {[%emt 0:00:
08]} 40. Qf2 {[%emt 0:00:03]} Qf7 {[%emt 0:00:01]} 41. g4 {[%emt 0:00:02]} Qe6
{[%emt 0:00:03]} 42. Kg2 {[%emt 0:00:02]} Rfd8 {[%emt 0:00:01]} 43. Qg3 {
[%emt 0:00:02]} Qf7 {[%emt 0:00:02]} 44. Nc3 {[%emt 0:00:03]} Rd6 {[%emt 0:00:
03]} 45. Nd5 {[%emt 0:00:02]} Rf8 {[%emt 0:00:03]} 46. Qf2 {[%emt 0:00:02]} Bd8
{[%emt 0:00:02]} 47. Kg3 {[%emt 0:00:03]} Qg7 {[%emt 0:00:03]} 48. Kg2 {
[%emt 0:00:02]} Qf7 {[%emt 0:00:01]} 49. Kg3 {[%emt 0:00:01]} Rg8 {[%emt 0:00:
01]} 50. Kg2 {[%emt 0:00:01]} Rc6 {[%emt 0:00:01]} 51. Kg3 {[%emt 0:00:02]} Re6
{[%emt 0:00:01]} 52. Kg2 {[%emt 0:00:01]} Qe8 {[%emt 0:00:01]} 53. Kg3 {
[%emt 0:00:02]} Qf7 {[%emt 0:00:01]} 54. Kg2 {[%emt 0:00:01]} Rd6 {[%emt 0:00:
01]} 55. Kg3 {[%emt 0:00:02]} Rf8 {[%emt 0:00:01]} 56. Kg2 {[%emt 0:00:01]} Qe6
{[%emt 0:00:02]} 57. Kg3 {[%emt 0:00:02]} Rxd5 {[%emt 0:00:02]} 58. exd5 {
[%emt 0:00:02]} Qd6 {[%emt 0:00:01]} 59. Kg2 {[%emt 0:00:02]} Be7 {[%emt 0:00:
02]} 60. Qe3 {[%emt 0:00:01]} Rd8 {[%emt 0:00:02]} 61. Qe4 {[%emt 0:00:01]} Kg7
{[%emt 0:00:02]} 62. Kg3 {[%emt 0:00:01]} Rf8 {[%emt 0:00:03]} 63. Kg2 {
[%emt 0:00:01]} Rf7 {[%emt 0:00:01]} 64. Kg3 {[%emt 0:00:02]} Rf8 {[%emt 0:00:
01]} 65. Kg2 {[%emt 0:00:01]} Rb8 {[%emt 0:00:01]} 66. Kg3 {[%emt 0:00:01]} Bd8
{[%emt 0:00:01]} 67. Kg2 {[%emt 0:00:01]} Qc7 {[%emt 0:00:03]} 68. Rf2 {
[%emt 0:00:02]} Be7 {[%emt 0:00:01]} 69. R2f3 {[%emt 0:00:01]} Qd6 {[%emt 0:00:
02]} 70. Rf2 {[%emt 0:00:01]} Rd8 {[%emt 0:00:01]} 71. R2f3 {[%emt 0:00:01]} b5
{[%emt 0:00:03]} 72. axb5 {[%emt 0:00:03]} Ra8 {[%emt 0:00:04]} 73. Rf2 {
[%emt 0:00:03]} a4 {[%emt 0:00:01]} 74. bxa4 {[%emt 0:00:03]} Rxa4 {[%emt 0:00:
01]} 75. Qe2 {[%emt 0:00:02]} Ra3 {[%emt 0:00:04]} 76. R5f3 {[%emt 0:00:06]}
Qd7 {[%emt 0:00:05]} 77. Qb2 {[%emt 0:00:02]} Qxg4+ {[%emt 0:00:02]} 78. Rg3 {
[%emt 0:00:04]} Qd4 {[%emt 0:00:10]} 79. Qxa3 {[%emt 0:00:03]} e4 {[%emt 0:00:
01]} 80. dxe4 {[%emt 0:00:03]} Qxe4+ {[%emt 0:00:01]} 81. Qf3 {[%emt 0:00:02]}
Qb1 {[%emt 0:00:04]} 82. Qe2 {[%emt 0:00:06]} Bf8 {[%emt 0:00:03]} 83. Qe6 {
[%emt 0:00:05]} Qa1 {[%emt 0:00:05]} 84. Qxf6+ {[%emt 0:00:04]} Qxf6 {[%emt 0:
00:02]} 85. Rxf6 {[%emt 0:00:02]} Kxf6 {[%emt 0:00:01]} 86. b6 {[%emt 0:00:01]}
Bd6 {[%emt 0:00:03]} 87. Rb3 {[%emt 0:00:02]} Ke5 {[%emt 0:00:02]} 88. b7 {
[%emt 0:00:02]} Bb8 {[%emt 0:00:01]} 89. Kf3 {[%emt 0:00:01]} Kd4 {[%emt 0:00:
01]} 90. Rb1 {[%emt 0:00:03]} Kxc4 {[%emt 0:00:01]} 91. d6 {[%emt 0:00:01]}
Bxd6 {[%emt 0:00:04]} 92. b8=Q {[%emt 0:00:02]} Bxb8 {[%emt 0:00:00]} 93. Rxb8
{[%emt 0:00:02]} Kc3 {[%emt 0:00:01]} 94. Rc8 {[%emt 0:00:01]} c4 {[%emt 0:00:
01]} 95. Ke4 {[%emt 0:00:01]} Kb3 {[%emt 0:00:02]} 96. Kd4 {[%emt 0:00:01]} g4
{[%emt 0:00:01]} 97. Rxc4 {[%emt 0:00:02]} g3 {[%emt 0:00:01]} 98. Rc3+ {
[%emt 0:00:01] Dicen, Elis won by resignation} 1-0

[Event "Live Chess"]
[Site "Chess.com"]
[Date "2020.05.16"]
[Round "1.71"]
[White "Diakonova, Ekaterina"]
[Black "Gamal, Alaa"]
[Result "1-0"]
[ECO "B38"]
[WhiteElo "2138"]
[BlackElo "1628"]
[PlyCount "93"]
[EventDate "2020.??.??"]
[TimeControl "180+2"]
[WhiteClock "0:00:20"]
[BlackClock "0:00:53"]

1. e4 {[%emt 0:00:00]} g6 {[%emt 0:00:02]} 2. d4 {[%emt 0:00:01]} c5 {[%emt 0:
00:02]} 3. Nf3 {[%emt 0:00:04]} cxd4 {[%emt 0:00:02]} 4. Nxd4 {[%emt 0:00:02]}
Bg7 {[%emt 0:00:01]} 5. c4 {[%emt 0:00:04]} Nc6 {[%emt 0:00:02]} 6. Be3 {
[%emt 0:00:04]} Nf6 {[%emt 0:00:02]} 7. Nc3 {[%emt 0:00:01]} d6 {[%emt 0:00:04]
} 8. f3 {[%emt 0:00:02]} O-O {[%emt 0:00:03]} 9. Be2 {[%emt 0:00:03]} Bd7 {
[%emt 0:00:03]} 10. Qd2 {[%emt 0:00:07]} a6 {[%emt 0:00:02]} 11. O-O {[%emt 0:
00:04]} Rc8 {[%emt 0:00:07]} 12. Rac1 {[%emt 0:00:24]} Ne5 {[%emt 0:00:09]} 13.
b3 {[%emt 0:00:03]} Qa5 {[%emt 0:00:09]} 14. Nd5 {[%emt 0:00:39]} Qd8 {[%emt 0:
00:02]} 15. a4 {[%emt 0:00:20]} Bc6 {[%emt 0:00:09]} 16. a5 {[%emt 0:00:04]}
Bxd5 {[%emt 0:00:06]} 17. exd5 {[%emt 0:00:01]} Ned7 {[%emt 0:00:02]} 18. b4 {
[%emt 0:00:04]} b6 {[%emt 0:00:03]} 19. Ra1 {[%emt 0:00:07]} Ne5 {[%emt 0:00:
04]} 20. Rfc1 {[%emt 0:00:06]} Rb8 {[%emt 0:00:14]} 21. f4 {[%emt 0:00:03]}
Ned7 {[%emt 0:00:17]} 22. Nc6 {[%emt 0:00:01]} Qc7 {[%emt 0:00:01]} 23. Nxb8 {
[%emt 0:00:03]} Qxb8 {[%emt 0:00:01]} 24. Bd4 {[%emt 0:00:12]} bxa5 {[%emt 0:
00:29]} 25. Rxa5 {[%emt 0:00:02]} Qb7 {[%emt 0:00:01]} 26. Rca1 {[%emt 0:00:09]
} Ra8 {[%emt 0:00:02]} 27. Qb2 {[%emt 0:00:05]} Nb8 {[%emt 0:00:07]} 28. Bf3 {
[%emt 0:00:07]} Qd7 {[%emt 0:00:04]} 29. c5 {[%emt 0:00:07]} dxc5 {[%emt 0:00:
15]} 30. bxc5 {[%emt 0:00:03]} Ra7 {[%emt 0:00:14]} 31. c6 {[%emt 0:00:03]}
Nxc6 {[%emt 0:00:14]} 32. dxc6 {[%emt 0:00:03]} Qc7 {[%emt 0:00:09]} 33. Be5 {
[%emt 0:00:04]} Nh5 {[%emt 0:00:14]} 34. Bxh5 {[%emt 0:00:06]} Bxe5 {[%emt 0:
00:03]} 35. Qxe5 {[%emt 0:00:02]} Qxe5 {[%emt 0:00:11]} 36. fxe5 {[%emt 0:00:
02]} gxh5 {[%emt 0:00:01]} 37. Rxa6 {[%emt 0:00:01]} Rc7 {[%emt 0:00:01]} 38.
Rc1 {[%emt 0:00:01]} Kg7 {[%emt 0:00:02]} 39. Rb6 {[%emt 0:00:01]} f6 {[%emt 0:
00:03]} 40. Rb7 {[%emt 0:00:01]} Rc8 {[%emt 0:00:01]} 41. Rxe7+ {[%emt 0:00:02]
} Kg6 {[%emt 0:00:02]} 42. c7 {[%emt 0:00:01]} fxe5 {[%emt 0:00:02]} 43. Rd7 {
[%emt 0:00:01]} Kf6 {[%emt 0:00:03]} 44. Rd8 {[%emt 0:00:01]} Ke7 {[%emt 0:00:
05]} 45. Rxc8 {[%emt 0:00:01]} Kd7 {[%emt 0:00:01]} 46. Rd8+ {[%emt 0:00:01]}
Ke6 {[%emt 0:00:01]} 47. c8=Q+ {[%emt 0:00:01] Diakonova, Ekaterina won by resignation} 1-0